Cogmind - Beta 11.1 @@@ ROGUE MODE // 2022.06.10 @ 15:40:00 Player: btmk16 Result: Destroyed by P-70 Sage with Tesla Rifle Performance ------------- Evolutions (6) 3000 Regions Visited (11) 2200 Robots Destroyed (152) 760 Value Destroyed (5289) 5289 Prototype IDs (9) 180 Alien Tech Used (1) 200 Bonus (1148) 1148 TOTAL SCORE: 12777 Bonus ------- Met Warlord at Base 500 MAIN.C Attacked Warlord 500 Warlord Defense Kills 148 Cogmind --------- Core Integrity 0/1150 Matter 267/300 Energy 98/100 System Corruption 2% Temperature Cool (0) Movement Core (50) Location -4/Upper Caves Parts ------- > --- POWER (2) -------- (None) > --- PROPULSION (7) --- (None) > --- UTILITY (8) ------ (None) > --- WEAPON (2) ------- (None) > --- INVENTORY (5) ---- Long-range Tractor Beam Advanced Trap Extractor (0/8) Peak State ------------ > --- POWER ------------ Micro Antimatter Reactor > --- PROPULSION ------- Armored Medium Treads Armored Medium Treads Heavy Treads Armored Huge Wheel > --- UTILITY ---------- High-capacity Storage Unit Improved Targeting Computer Improved Melee Analysis Suite Hardened Medium Armor Plating Hardened Medium Armor Plating Layered Medium Armor Plating Advanced Shield Generator > --- WEAPON ----------- Long-range Proton Cannon Helical Railgun > --- INVENTORY -------- Light Nuclear Core Micro Nuclear Core Heavy Treads Heavy Treads Heavy Treads Heavy Treads Hardened Medium Armor Plating Improved Medium Armor Plating Improved Medium Armor Plating Layered Light Armor Plating Layered Light Armor Plating Long-range Tractor Beam Vortex Shotgun Vortex Shotgun Vortex Catalyst Activator [Rating: 90] Favorites ----------- Power Cooled Ion Engine Engine Cooled Ion Engine Power Core Neutrino Core Reactor Micro Antimatter Reactor Propulsion Light Treads Treads Light Treads Leg Carbon-fiber Leg Wheel Wheel Hover Unit Gravmag System Flight Unit VTOL Module Utility High-capacity Storage Unit Device Heat Sink Storage High-capacity Storage Unit Processor Visual Processing Unit Hackware Hacking Suite Protection Layered Light Armor Plating Weapon Improved Light Cannon Energy Gun Vortex Shotgun Energy Cannon Matter Neutralizer Ballistic Gun Shotgun Ballistic Cannon Improved Light Cannon Launcher Vortex Catalyst Activator Impact Weapon Powered Hammer Build | -11 -10 -9 -8 -7 -6 -5 -5 -5 -4 -4 -4 ------- Run | Scr Mat Mat Mat Fac Fac Fac Upp War Pro Fac Upp Slots Evolved 12 | . . 2 2 2 2 2 . . . 2 . Power 1 | . . . . . . . . . . 1 . Propulsion 5 | . . 1 1 . 1 1 . . . 1 . Utility 6 | . . 1 1 2 1 1 . . . . . Weapon . | . . . . . . . . . . . . Parts Attached 168 | . 13 10 29 15 34 12 7 14 20 6 8 Power 14 | . 2 1 3 . 2 1 1 2 2 . . Engine 9 | . 2 1 3 . 2 1 . . . . . Core 3 | . . . . . . . 1 1 1 . . Reactor 2 | . . . . . . . . 1 1 . . Propulsion 53 | . 3 3 11 2 12 6 3 3 5 2 3 Treads 29 | . . 3 11 2 1 1 3 3 4 1 . Leg 5 | . . . . . . 3 . . . . 2 Wheel 14 | . 3 . . . 9 2 . . . . . Hover 3 | . . . . . 2 . . . . 1 . Flight 2 | . . . . . . . . . 1 . 1 Utility 52 | . 4 2 10 8 10 3 3 3 6 . 3 Device 17 | . 2 . . 3 6 2 1 . 1 . 2 Storage 3 | . 2 . . . 1 . . . . . . Processor 5 | . . . 1 . . 1 1 . 1 . 1 Hackware 1 | . . . . 1 . . . . . . . Protection 26 | . . 2 9 4 3 . 1 3 4 . . Artifact . | . . . . . . . . . . . . Weapon 49 | . 4 4 5 5 10 2 . 6 7 4 2 Energy Gun 8 | . 3 . . . . . . 2 3 . . Energy Cannon 12 | . . . 1 2 2 . . 2 2 3 . Ballistic Gun 4 | . . 2 . . . . . 1 1 . . Ballistic Cannon 12 | . . 2 4 2 2 2 . . . . . Launcher 6 | . 1 . . . 1 . . 1 1 . 2 Special Weapon . | . . . . . . . . . . . . Impact Weapon 7 | . . . . 1 5 . . . . 1 . Slashing Weapon . | . . . . . . . . . . . . Piercing Weapon . | . . . . . . . . . . . . Special Melee Weapon . | . . . . . . . . . . . . Unidentified Prototypes 8 | . . . 1 1 1 1 . 3 . . 1 Corrupted Parts 2 | . . . . . 1 1 . . . . . System Corruption 9 | . . . . . 2 7 . . . . . Parts Lost 86 | . 4 1 15 5 25 . 3 2 21 4 6 Power 7 | . . . 2 . 3 . . . 2 . . Propulsion 36 | . 1 1 6 2 13 . 1 1 6 3 2 Utility 29 | . 1 . 4 3 5 . 2 1 10 . 3 Weapon 14 | . 2 . 3 . 4 . . . 3 1 1 Highest Loss Streak 7 | . 3 1 4 3 7 . 2 2 7 2 3 To Critical Strikes 1 | . . . . . . . . . . 1 . Average Slot Usage (%) 80 | . 98 98 95 98 70 92 93 91 60 11 9 Engine 4 | . 14 11 9 7 3 5 2 . . . . Treads 15 | . . 28 32 29 6 10 10 11 11 7 . Wheel 6 | . 22 3 . . 7 13 17 16 2 . . Device 9 | . 13 11 9 13 14 10 9 10 1 . 1 Storage 6 | . 14 11 9 7 5 5 5 5 4 . . Processor 6 | . . . 9 7 6 7 12 11 9 . 2 Hackware 2 | . . . . 6 6 3 . . . . . Protection 8 | . . 10 8 7 4 17 17 17 10 . . Energy Gun 2 | . 27 . . . . . . 3 3 . . Energy Cannon 1 | . . . . 3 3 . . 1 2 2 . Ballistic Cannon 6 | . . 14 17 11 3 1 11 2 . . . Impact Weapon 1 | . . . . . 5 9 . . . . . Naked Turns 54 | . . . . . . . . . 1 29 24 Heaviest Build 100 | 14 51 61 65 68 70 85 93 100 94 20 20 Greatest Support 167 | 20 26 60 86 84 60 54 54 54 167 140 15 Greatest Overweight (x) 20 | . 4 3 1 1 20 6 1 3 3 . 6 Average Overweight (x) 1 | . . . . . 3 1 1 1 1 . . Largest Inventory Capacity 20 | . 20 20 20 20 20 20 20 20 20 5 5 Average Capacity 18 | . 18 20 20 20 18 20 20 20 19 5 5 Most Carried 20 | . 20 20 20 20 20 20 20 20 20 5 5 Average Carried 17 | . 15 19 18 18 17 19 19 19 16 4 3 Final Capacity 20 | 8 20 20 20 20 20 20 20 20 5 5 5 Final Carried 20 | 6 19 20 18 20 19 20 20 20 5 3 2 Class Distribution -------------------- 73% | Mutant 26% | Scavenger-Mutant Dominant Class ---------------- Mutant | -10/Materials Scavenger-Mutant | -9/Materials Mutant | -8/Materials Mutant | -7/Factory Mutant | -6/Factory Mutant | -5/Factory Mutant | -5/Upper Caves Mutant | -5/Warlord Mutant | -4/Proximity Caves Mutant | -4/Factory Mutant | -4/Upper Caves Resources | -11 -10 -9 -8 -7 -6 -5 -5 -5 -4 -4 -4 ----------- Run | Scr Mat Mat Mat Fac Fac Fac Upp War Pro Fac Upp Matter Collected 4302 | 200 180 415 908 656 931 128 350 188 262 29 55 Remotely 304 | . . . . . 226 78 . . . . . Salvage Created 4526 | . 353 504 722 861 962 419 148 53 458 18 28 Parts 211 | . 20 39 47 29 47 9 10 1 7 . 2 Haulers Intercepted 6 | . . 3 2 1 . . . . . . . Recyclers Shooed 4 | . 1 . 1 1 1 . . . . . . Parts Field Recycled . | . . . . . . . . . . . . Retrieved Matter . | . . . . . . . . . . . . Parts Self-Destructed 11 | . . . . . . . 4 . 6 . 1 Prevented 5 | . . . . . . . . . . . 5 Kills | -11 -10 -9 -8 -7 -6 -5 -5 -5 -4 -4 -4 ------- Run | Scr Mat Mat Mat Fac Fac Fac Upp War Pro Fac Upp Combat Hostiles Destroyed 113 | . 10 14 23 17 16 5 6 2 18 1 1 Melee 5 | . . . . . 3 1 . . 1 . . Guns 22 | . 10 3 . . . . . 1 8 . . Cannons 69 | . . 11 23 17 7 4 6 1 . . . AOE 12 | . . . . . 2 . . . 9 . 1 Classes Destroyed 17 | . 2 3 7 2 . . 1 1 . . 1 Worker 8 | . . . 1 . 7 . . . . . . Builder 13 | . . . 5 1 7 . . . . . . Tunneler 2 | . . . 1 . 1 . . . . . . Hauler 6 | . . 3 2 1 . . . . . . . Recycler 5 | . . . . 2 1 2 . . . . . Minesweeper 1 | . . . . . . . . . . . 1 Operator 4 | . . 1 1 . 2 . . . . . . Watcher 1 | . . . 1 . . . . . . . . Swarmer 20 | . 3 3 . . 2 4 . 1 6 1 . Grunt 61 | . 7 9 13 14 7 . 1 . 9 . 1 Duelist 3 | . . . 1 2 . . . . . . . Protector 1 | . . . . . . . . 1 . . . Sentry 12 | . . 2 7 . 2 . . . 1 . . Hunter 5 | . . . 1 . 1 1 . . 2 . . Programmer 5 | . . . . 1 4 . . . . . . Heavy 1 | . . . 1 . . . . . . . . Decomposer 1 | . . . . . . . 1 . . . . Assembled 1 | . . . . . . . 1 . . . . Wasp 3 | . . . . . . . 3 . . . . Thug 1 | . . . . . . . 1 . . . . Best Kill Streak 9 | . 3 3 7 6 5 4 4 1 9 1 2 Combat Bots Only 9 | . 3 3 6 6 3 4 4 1 9 1 1 Max Kills in Single Turn 4 | . 1 2 4 1 2 1 1 1 3 1 2 Gunslinging . | . . . . . . . . . . . . Exploded 3 | . . . . . 1 . . . 3 . 1 Melee 1 | . . . . . 1 1 . . 1 . . Uniques/NPCs Destroyed . | . . . . . . . . . . . . Combat | -11 -10 -9 -8 -7 -6 -5 -5 -5 -4 -4 -4 -------- Run | Scr Mat Mat Mat Fac Fac Fac Upp War Pro Fac Upp Damage Taken 16145 | . 480 430 2691 1247 2621 312 357 1011 4733 1759 504 Core 2782 | . 161 80 157 132 583 42 43 72 356 817 339 Absorbed by Shields 418 | . . . . 46 . . 128 170 74 . . Reduced by Siege Mode 183 | . . . . . . . . . 128 55 . Core Remaining (%) 63 | 100 35 80 71 81 31 . . . 48 . . Volleys Fired 447 | . 40 40 96 74 76 6 20 10 77 5 3 Largest 2 | . 2 2 2 2 2 2 2 2 2 2 1 Hottest 210 | . 90 78 99 83 153 96 96 162 210 210 20 Shots Fired 759 | . 77 80 189 146 106 11 41 12 88 6 3 Gun 162 | . 76 30 . . . . . 8 48 . . Cannon 587 | . . 50 189 146 103 11 41 4 37 6 . Launcher 10 | . 1 . . . 3 . . . 3 . 3 Special . | . . . . . . . . . . . . Kinetic 539 | . . 80 186 111 76 11 41 8 26 . . Thermal 158 | . 51 . 3 35 27 . . . 36 6 . Explosive 4 | . 1 . . . 3 . . . . . . Electromagnetic 30 | . 25 . . . . . . 4 1 . . Entropic 28 | . . . . . . . . . 25 . 3 Robot Hit Streak 28 | . 9 8 10 28 7 8 3 6 6 3 2 Robot Miss Streak 7 | . 2 5 5 3 3 3 7 3 4 1 . Penetration Max 1 | . . . . . . . . 1 . . . Secondary Targets 1 | . . . . . . . . . 1 . . Max Gunslinging Chain 1 | . . . . . . . . . 1 . . Shots Hit Robots 467 | . 46 49 123 77 93 11 11 6 44 6 1 Core Hits 226 | . 19 24 56 38 34 5 8 4 33 3 2 Critical Kills 2 | . . . . . 2 . . . . . . Critical Parts Destroyed 9 | . . 1 . . 4 . . 1 3 . . Critical Strikes 23 | . 4 1 3 1 8 . 2 1 3 . . Burn 4 | . 4 . . . . . . . . . . Destroy 3 | . . 1 . . . . . 1 1 . . Blast 8 | . . . 3 1 2 . 2 . . . . Smash 6 | . . . . . 6 . . . . . . Detonate 2 | . . . . . . . . . 2 . . Melee Attacks 72 | . . . . 1 53 11 . . . 7 . Impact 72 | . . . . 1 53 11 . . . 7 . Slashing . | . . . . . . . . . . . . Piercing . | . . . . . . . . . . . . Sneak Attacks 11 | . . . . . 9 2 . . . . . Combat Hostiles . | . . . . . . . . . . . . Follow-up Attacks 6 | . . . . . 5 1 . . . . . Damage Inflicted 16068 | . 602 851 3293 1859 3576 521 353 215 4019 202 577 Guns 2472 | . 602 372 . . . . . 181 1317 . . Cannons 7779 | . . 479 2935 1840 1589 153 353 28 256 146 . Explosions 3529 | . . . 358 . 178 . . . 2416 . 577 Melee 2232 | . . . . . 1809 368 . . . 55 . Ramming 56 | . . . . 19 . . . 6 30 1 . Kinetic 6965 | . . 851 2889 1103 1123 153 353 181 312 . . Thermal 2175 | . 355 . 46 737 466 . . . 425 146 . Explosive 536 | . . . 358 . 178 . . . . . . Electromagnetic 303 | . 247 . . . . . . 28 28 . . Impact 2232 | . . . . . 1809 368 . . . 55 . Slashing . | . . . . . . . . . . . . Piercing . | . . . . . . . . . . . . Entropic 3801 | . . . . . . . . . 3224 . 577 Highest Corruption 9 | . . . . 1 8 7 7 7 9 1 1 Average Corruption 4 | . . . . 1 4 7 7 7 4 1 1 Corruption Purged . | . . . . . . . . . . . . Corruption Blocked . | . . . . . . . . . . . . Effects 48 | . . . . . 22 10 13 . . . 3 Message Errors 16 | . . . . . 9 3 4 . . . . Matter Fused 6 | . . . . . 3 1 2 . . . . Heat Flow Errors 11 | . . . . . 5 3 2 . . . 1 Energy Discharges 5 | . . . . . 1 1 2 . . . 1 Data Loss (minor) 4 | . . . . . 2 . 1 . . . 1 Data Loss (major) 2 | . . . . . 1 1 . . . . . Misfires 2 | . . . . . 1 . 1 . . . . Alerts 1 | . . . . . . . 1 . . . . Weapon Failures 1 | . . . . . . 1 . . . . . Overload Shots 1 | . . . . . 1 . . . . . . Overflow Damage 977 | . . . 16 5 631 154 . . 151 4 16 Projectiles 88 | . . . 16 5 67 . . . . . . Explosions 173 | . . . . . 6 . . . 151 . 16 Melee 716 | . . . . . 558 154 . . . 4 . Knockbacks 77 | . . 4 30 14 25 2 2 . . . . Impact 13 | . . . . . 11 2 . . . . . Kinetic 60 | . . 4 26 14 14 . 2 . . . . Secondary 4 | . . . 4 . . . . . . . . Self-Inflicted Damage 183 | . . . . . 72 . . 3 108 . . Shots 5 | . . . . . 3 . . . 2 . . Rammed 7 | . . . . 2 . . . 1 3 1 . Targets Rammed 8 | . . . . 2 . . . 1 4 1 . Kicked . | . . . . . . . . . . . . Crushed 1 | . . . . . . . . . 1 . . Highest Temperature 513 | . 356 12 157 24 211 268 320 36 513 118 242 Average Temperature 101 | . 131 3 27 10 80 113 115 12 136 50 134 Received Heat Transfer 4125 | . 255 225 990 615 510 . 116 311 802 262 39 Effects 17 | . 1 . . . . 1 1 . 14 . . Shutdowns 3 | . 1 . . . . . . . 2 . . Energy Bleed 2 | . . . . . . . . . 2 . . Interference 4 | . . . . . . 1 . . 3 . . Matter Decay 1 | . . . . . . . . . 1 . . Short Circuit 1 | . . . . . . . . . 1 . . Damage (minor) 2 | . . . . . . . 1 . 1 . . Damage (major) 4 | . . . . . . . . . 4 . . Siege Activations 3 | . . . . . . . . . 1 2 . Total Turns 135 | . . . . . . . . . 41 94 . Longest Duration 84 | . . . . . . . . . 41 84 . Robots Corrupted . | . . . . . . . . . . . . Combat Hostiles . | . . . . . . . . . . . . Parts Fried 15 | . . . . . 12 2 . . . 1 . Impact Corruptions 29 | . . . . . 23 5 . . . 1 . Robots Melted 1 | . . . . . 1 . . . . . . Combat Hostiles 1 | . . . . . 1 . . . . . . Parts Melted 5 | . 2 . . 1 2 . . . . . . Heat Transferred 3588 | . 1297 . 74 999 698 . . . 372 148 . Parts Sabotaged . | . . . . . . . . . . . . Parts Stolen . | . . . . . . . . . . . . Parts Stripped . | . . . . . . . . . . . . Power Chain Reactions . | . . . . . . . . . . . . Missiles Intercepted . | . . . . . . . . . . . . Alert | -11 -10 -9 -8 -7 -6 -5 -5 -5 -4 -4 -4 ------- Run | Scr Mat Mat Mat Fac Fac Fac Upp War Pro Fac Upp Peak Influence 400 | . 212 342 400 320 266 124 . . . 124 . Initial 144 | . . 59 144 62 114 44 . . . . . Average 118 | . 85 142 158 169 86 70 . . . 28 . Maximum Alert Level 2 | . 1 1 2 1 1 . . . . . . Low Security (%) 83 | . 98 74 65 70 97 100 . . . 100 . Level 1 15 | . 1 25 33 29 2 . . . . . . Level 2 . | . . . 1 . . . . . . . . Level 3 . | . . . . . . . . . . . . Level 4 . | . . . . . . . . . . . . Level 5 . | . . . . . . . . . . . . High Security . | . . . . . . . . . . . . Max Security . | . . . . . . . . . . . . Squads Dispatched 24 | . 3 3 5 4 9 . . . . . . Investigation 8 | . 3 2 1 1 1 . . . . . . Extermination 6 | . . . . 2 4 . . . . . . Reinforcement 10 | . . 1 4 1 4 . . . . . . Assault . | . . . . . . . . . . . . Garrison . | . . . . . . . . . . . . Intercept . | . . . . . . . . . . . . Searches Triggered . | . . . . . . . . . . . . Construction Impeded 4 | . . . 1 . 3 . . . . . . Haulers Reinforced . | . . . . . . . . . . . . Active Scanning Responses . | . . . . . . . . . . . . Cargo Convoy Interrupts . | . . . . . . . . . . . . Stealth | -11 -10 -9 -8 -7 -6 -5 -5 -5 -4 -4 -4 --------- Run | Scr Mat Mat Mat Fac Fac Fac Upp War Pro Fac Upp Distress Signals 4 | . . 2 1 1 . . . . . . . Communications Jammed . | . . . . . . . . . . . . Distress Signals . | . . . . . . . . . . . . Times Spotted 206 | . 14 20 37 22 24 9 6 21 28 14 11 Peak Tracking Total 10 | . 3 4 8 8 4 4 4 10 9 9 6 Tactical Retreats 22 | . 1 1 3 1 3 1 . 2 5 2 3 Traps | -11 -10 -9 -8 -7 -6 -5 -5 -5 -4 -4 -4 ------- Run | Scr Mat Mat Mat Fac Fac Fac Upp War Pro Fac Upp Traps Triggered 6 | . . 1 3 2 . . . . . . . Indirectly . | . . . . . . . . . . . . Trap Hack Attempts . | . . . . . . . . . . . . Triggered . | . . . . . . . . . . . . Disarmed . | . . . . . . . . . . . . Reprogrammed . | . . . . . . . . . . . . Reused . | . . . . . . . . . . . . Traps Extracted . | . . . . . . . . . . . . Installed . | . . . . . . . . . . . . Triggered 19 | . . . . . . . . 15 1 . 3 Machines | -11 -10 -9 -8 -7 -6 -5 -5 -5 -4 -4 -4 ---------- Run | Scr Mat Mat Mat Fac Fac Fac Upp War Pro Fac Upp Machines Disabled 8 | . . 1 1 1 1 . . . 2 . 2 Max in Single Turn 2 | . . 1 1 1 1 . . . 1 . 2 Machines Sabotaged . | . . . . . . . . . . . . Garrisons Compromised . | . . . . . . . . . . . . Overloaded Fab Kills . | . . . . . . . . . . . . Hacking | -11 -10 -9 -8 -7 -6 -5 -5 -5 -4 -4 -4 --------- Run | Scr Mat Mat Mat Fac Fac Fac Upp War Pro Fac Upp Machines Accessed 27 | . 3 2 7 4 5 2 . 2 1 1 . Terminals 16 | . 1 1 7 2 2 1 . . 1 1 . Fabricators 2 | . . . . . 2 . . . . . . Repair Stations 2 | . . . . 1 1 . . . . . . Recycling Units 5 | . 2 1 . 1 . 1 . . . . . Scanalyzers . | . . . . . . . . . . . . Garrison Access . | . . . . . . . . . . . . Total Hacks 71 | . 3 4 28 8 12 4 . 2 7 3 . Successful 47 | . 3 4 15 6 5 3 . 2 7 2 . Failed 24 | . . . 13 2 7 1 . . . 1 . Catastrophic 2 | . . . 1 1 . . . . . . . Database Lockouts . | . . . . . . . . . . . . Manual 32 | . 2 3 18 3 3 1 . . . 2 . Terminals 57 | . 1 3 28 5 7 3 . . 7 3 . Fabricators 4 | . . . . . 4 . . . . . . Repair Stations 3 | . . . . 2 1 . . . . . . Recycling Units 5 | . 2 1 . 1 . 1 . . . . . Scanalyzers . | . . . . . . . . . . . . Garrison Access . | . . . . . . . . . . . . Terminal Hacks 27 | . 1 1 7 3 2 2 . 2 7 2 . Record 7 | . . . . . . . . . 7 . . Part Schematic 4 | . . . . 2 2 . . . . . . Prototype ID Bank 1 | . . . . 1 . . . . . . . Open Door 2 | . . . . . . . . 2 . . . Terminal Index 1 | . . . . . . 1 . . . . . Alert Level 3 | . . . 1 . . 1 . . . 1 . Unreport Threat 3 | . . . 3 . . . . . . . . Locate Traps 2 | . 1 . 1 . . . . . . . . Dispatch Records 1 | . . . . . . . . . . 1 . Transport Status 1 | . . . 1 . . . . . . . . Hauler Manifests 1 | . . 1 . . . . . . . . . Zone Layout 1 | . . . 1 . . . . . . . . Fabricator Hacks . | . . . . . . . . . . . . Repair Station Hacks 2 | . . . . 1 1 . . . . . . Scan Component 1 | . . . . 1 . . . . . . . Refit 1 | . . . . . 1 . . . . . . Recycling Unit Hacks 1 | . . . . . . 1 . . . . . Retrieve Components 1 | . . . . . . 1 . . . . . Scanalyzer . | . . . . . . . . . . . . Garrison Access Hacks . | . . . . . . . . . . . . Unauthorized Hacks 17 | . 2 3 8 2 2 . . . . . . Terminals 11 | . . 2 8 1 . . . . . . . Track 5 | . . 1 4 . . . . . . . . Assimilate 1 | . . . 1 . . . . . . . . Botnet 5 | . . 1 3 1 . . . . . . . Fabricators 2 | . . . . . 2 . . . . . . Fabnet 2 | . . . . . 2 . . . . . . Repair Stations . | . . . . . . . . . . . . Recycling Units 4 | . 2 1 . 1 . . . . . . . Tunnel 4 | . 2 1 . 1 . . . . . . . Scanalyzers . | . . . . . . . . . . . . Garrison Access . | . . . . . . . . . . . . Data Cores Recovered 2 | . . . 1 . 1 . . . . . . Used 1 | . . . 1 . . . . . . . . Hacking Detections 16 | . 1 1 5 3 3 1 . . 1 1 . Full Trace Events 1 | . . . . . 1 . . . . . . Feedback Events . | . . . . . . . . . . . . Feedback Blocked . | . . . . . . . . . . . . Robot Schematics Acquired . | . . . . . . . . . . . . Robots Built . | . . . . . . . . . . . . Authchips . | . . . . . . . . . . . . Time . | . . . . . . . . . . . . Total Robot Build Rating . | . . . . . . . . . . . . Part Schematics Acquired 4 | . . . . 2 2 . . . . . . Parts Built . | . . . . . . . . . . . . Authchips . | . . . . . . . . . . . . Time . | . . . . . . . . . . . . Total Part Build Rating . | . . . . . . . . . . . . Parts Repaired . | . . . . . . . . . . . . Time . | . . . . . . . . . . . . Parts Recycled . | . . . . . . . . . . . . Recycled Matter . | . . . . . . . . . . . . Retrieved Matter . | . . . . . . . . . . . . Retrieved Components 3 | . . . . . . 3 . . . . . Parts Scanalyzed . | . . . . . . . . . . . . Part Schematics Acquired . | . . . . . . . . . . . . Parts Damaged . | . . . . . . . . . . . . Bothacking | -11 -10 -9 -8 -7 -6 -5 -5 -5 -4 -4 -4 ------------ Run | Scr Mat Mat Mat Fac Fac Fac Upp War Pro Fac Upp Used RIF Installer . | . . . . . . . . . . . . Robots Hacked 8 | . . . . . . . 1 5 2 . . Non-combat . | . . . . . . . . . . . . Combat 8 | . . . . . . . 1 5 2 . . Robot Hacks Applied . | . . . . . . . . . . . . Relay Couplers Released . | . . . . . . . . . . . . Fabnet Peak Effective % 6 | . . . . . . 6 6 6 2 2 2 Autooverrided 8 | . . . . . . . 1 5 2 . . Robots Rewired . | . . . . . . . . . . . . Allies Hacked . | . . . . . . . . . . . . Hacks Repelled . | . . . . . . . . . . . . Allies | -11 -10 -9 -8 -7 -6 -5 -5 -5 -4 -4 -4 -------- Run | Scr Mat Mat Mat Fac Fac Fac Upp War Pro Fac Upp Total Allies 8 | . . . . . . . 1 5 2 . . Largest Group 2 | . . . . . . . 1 2 1 . . Highest-Rated Group 132 | . . . . . . . 29 132 64 . . Highest-Rated Ally 85 | . . . . . . . 29 85 64 . . Total Orders . | . . . . . . . . . . . . Ally Attacks 24 | . . . . . . . 6 12 6 . . Total Damage 742 | . . . . . . . 96 440 206 . . Kills . | . . . . . . . . . . . . Allies Corrupted . | . . . . . . . . . . . . Allies Melted . | . . . . . . . . . . . . Intel | -11 -10 -9 -8 -7 -6 -5 -5 -5 -4 -4 -4 ------- Run | Scr Mat Mat Mat Fac Fac Fac Upp War Pro Fac Upp Robot Analysis Total . | . . . . . . . . . . . . Derelict Logs Recovered 4 | . . . . . . . 2 . 2 . . Drone Launches . | . . . . . . . . . . . . Drone Recoveries . | . . . . . . . . . . . . Exploration | -11 -10 -9 -8 -7 -6 -5 -5 -5 -4 -4 -4 ------------- Run | Scr Mat Mat Mat Fac Fac Fac Upp War Pro Fac Upp Turns Passed 9351 | . 564 759 1414 1016 1895 494 458 793 1399 260 299 Spaces Moved 5541 | 1 362 319 657 438 941 315 356 675 799 223 455 Core 540 | . . . . . 68 . . . 22 175 275 Treads 1782 | . . 233 657 438 87 . . . 357 10 . Legs 141 | 1 61 . . . . . . . . . 79 Wheels 2936 | . 301 86 . . 783 315 356 675 420 . . Hover 41 | . . . . . 3 . . . . 38 . Flight 101 | . . . . . . . . . . . 101 Fastest Speed 35 | 120 105 105 145 152 80 108 108 108 50 40 35 Average Speed 129 | 120 107 184 153 156 155 115 108 109 142 53 59 Slowest Speed 1050 | 120 140 240 230 243 1050 170 108 145 165 160 350 Overloaded Moves . | . . . . . . . . . . . . Propulsion Burnouts . | . . . . . . . . . . . . Robots Hopped . | . . . . . . . . . . . . Cave-ins Triggered 1 | . . . . . . . . . 1 . . Exploration Rate (%) 37 | 2 55 34 55 12 21 6 47 79 79 10 47 Regions Visited 11 Branch Regions 4 Pre-discovered Areas 5 | . 2 1 . 1 . . . . 1 . . Known Exits Taken 1 | . . . . . . . . . . 1 . Unknown Exits Taken 10 | 1 1 1 1 1 1 1 1 1 1 . . Scrap Searched 5 | . . . . . . . 2 . 1 . 2 Spaces Dug 42 | . . . . 4 10 1 1 . 10 1 15 Terrain Destroyed 265 | . 8 3 14 6 53 3 20 . 118 3 37 Melee 12 | . . . . 1 9 1 . . . 1 . Projectile 102 | . . 3 9 5 16 2 20 . 45 2 . AOE 151 | . 8 . 5 . 28 . . . 73 . 37 Terrain Rammed . | . . . . . . . . . . . . Walls Destroyed . | . . . . . . . . . . . . Machines Disabled . | . . . . . . . . . . . . Actions | -11 -10 -9 -8 -7 -6 -5 -5 -5 -4 -4 -4 --------- Run | Scr Mat Mat Mat Fac Fac Fac Upp War Pro Fac Upp Total 6883 | . 454 418 883 621 1175 422 390 725 970 346 479 Wait 464 | . 27 21 68 73 51 53 1 3 62 104 1 Move 5529 | . 361 318 656 437 940 314 355 674 797 222 455 Hop . | . . . . . . . . . . . . Pick Up 98 | . 12 12 17 10 19 11 3 6 6 . 2 Fast Attach 72 | . 3 6 5 4 27 7 1 4 7 3 5 Attach 55 | . 3 2 15 6 2 3 3 2 12 3 4 Detach 14 | . 1 1 2 1 1 2 . . 3 1 2 Swap 42 | . 7 2 9 5 5 2 3 8 1 . . Drop 85 | . . 16 15 8 9 16 4 17 . . . Fire 447 | . 40 40 96 74 76 6 20 10 77 5 3 Melee 61 | . . . . 1 45 8 . . . 7 . Ram 2 | . . . . . . . . 1 . 1 . Kick . | . . . . . . . . . . . . Crush 6 | . . . . 2 . . . . 4 . . Escape Stasis 1 | . . . . . . . . . 1 . . Rewire 7 | . . . . . . . . . . . 7 Trap . | . . . . . . . . . . . . Miscellaneous . | . . . . . . . . . . . . Route ------- -11/Scrapyard -10/Materials (discovered 2 exits: *Mat / [*Min]) -9/Materials -8/Materials (discovered 2 exits: *Fac x2) -7/Factory -6/Factory (discovered 2 exits: *Fac / [*Low]) -5/Factory -5/Upper Caves -5/Warlord -4/Proximity Caves -4/Factory -4/Upper Caves (discovered 1 exit: Upp) History --------- Turn | Location | Event 1 | -11/Scrapyard | Discovered new exit (range 0) 1 | -11/Scrapyard | Entered Materials 205 | -10/Materials | Discovered new exit (range 15) 303 | -10/Materials | Build established: Mutant 416 | -10/Materials | Discovered new exit (range 12) 460 | -10/Materials | Core integrity fell below 50% 506 | -10/Materials | Lost 3 parts (1n1u1w) 565 | -10/Materials | Entered another Materials area 565 | -9/Materials | Evolved 2 slots: Propulsion x1, Utility x1 996 | -9/Materials | Build established: Scavenger-Mutant 1196 | -9/Materials | Discovered new exit (range 10) 1324 | -9/Materials | Entered another Materials area 1324 | -8/Materials | Evolved 2 slots: Propulsion x1, Utility x1 1882 | -8/Materials | Lost 4 parts (3n1w) 1974 | -8/Materials | Discovered new exit (range 17) 2077 | -8/Materials | Lost 3 parts (1p1n1w) 2139 | -8/Materials | Build established: Mutant 2303 | -8/Materials | Lost 4 parts (1p3u) 2541 | -8/Materials | Discovered new exit (range 18) 2560 | -8/Materials | Lost 3 parts (2n1w) 2738 | -8/Materials | Entered Factory 2738 | -7/Factory | Evolved 2 slots: Utility x2 3470 | -7/Factory | Lost 3 parts (1n2u) 3602 | -7/Factory | Discovered new exit (range 11) 3754 | -7/Factory | Entered another Factory area 3754 | -6/Factory | Evolved 2 slots: Propulsion x1, Utility x1 4137 | -6/Factory | Build established: Scavenger-Mutant 4167 | -6/Factory | Discovered new exit (range 11) 4369 | -6/Factory | Lost 7 parts (1p5n1u) 4639 | -6/Factory | Build established: Mutant 4684 | -6/Factory | Lost 6 parts (2n1u3w) 4888 | -6/Factory | Lost 5 parts (1p2n2u) 5192 | -6/Factory | Core integrity fell below 50% 5219 | -6/Factory | Discovered new exit (range 15) 5649 | -6/Factory | Entered another Factory area 5649 | -5/Factory | Evolved 2 slots: Propulsion x1, Utility x1 5995 | -5/Factory | Discovered new exit (range 11) 6143 | -5/Factory | Entered Upper Caves 6174 | -5/Upper Caves | Learned Factory trap positions 6415 | -5/Upper Caves | Ambushed by wild Derelicts 6594 | -5/Upper Caves | A Derelict revealed a hidden shortcut to "reach the base" 6601 | -5/Upper Caves | Entered Warlord 6638 | -5/Warlord | System corruption cleaned by Quarantine Array 6765 | -5/Warlord | Warlord's base attacked by MAIN.C 6775 | -5/Warlord | Found Prototype Launcher 6775 | -5/Warlord | Identified Vortex Catalyst Activator 6779 | -5/Warlord | Found Prototype Energy Gun 6781 | -5/Warlord | Found Prototype Energy Gun 6916 | -5/Warlord | Met Warlord 6983 | -5/Warlord | Identified Vortex Shotgun (x2) 7115 | -5/Warlord | Warlord forces counterattacked 7147 | -5/Warlord | Opened side exit 7341 | -5/Warlord | Spotted Executioner 7380 | -5/Warlord | Discovered new exit (range 12) 7394 | -5/Warlord | Entered Proximity Caves 7535 | -4/Proximity Caves | Lost 4 parts (1n1u2w) 7583 | -4/Proximity Caves | Learned 8 Research zone layouts 7825 | -4/Proximity Caves | Learned location of Quarantine (-3) 8072 | -4/Proximity Caves | Build established: Scavenger-Mutant 8141 | -4/Proximity Caves | Destroyed 9 combat bots 8148 | -4/Proximity Caves | Lost 7 parts (3n3u1w) 8170 | -4/Proximity Caves | Learned location of 2 exits from Upper Caves 8170 | -4/Proximity Caves | Learned 8 Factory zone layouts 8170 | -4/Proximity Caves | Learned Factory emergency access door positions 8294 | -4/Proximity Caves | Lost 6 parts (2p1n3u) 8374 | -4/Proximity Caves | Build established: Mutant 8527 | -4/Proximity Caves | Spotted B-86 Titan 8749 | -4/Proximity Caves | Crushed by falling debris 8777 | -4/Proximity Caves | Released all parts (7) 8787 | -4/Proximity Caves | Discovered new exit (range 15) 8788 | -4/Proximity Caves | Core integrity fell below 50% 8793 | -4/Proximity Caves | Entered Factory 8793 | -4/Factory | Evolved 2 slots: Power x1, Propulsion x1 8794 | -4/Factory | Identified exit to Upper Caves 8795 | -4/Factory | Loaded intel: 115 trap records 8990 | -4/Factory | Released all parts (3) 9038 | -4/Factory | Core integrity fell below 50% 9053 | -4/Factory | Entered Upper Caves 9054 | -4/Upper Caves | Identified exit to Upper Caves 9221 | -4/Upper Caves | Spotted B-86 Titan 9260 | -4/Upper Caves | Lost 3 parts (1n2u) 9288 | -4/Upper Caves | Core integrity fell below 20% 9289 | -4/Upper Caves | Found Alien Artifact 9289 | -4/Upper Caves | Identified Dimensional Node Initializer 9289 | -4/Upper Caves | Initialized slip node 9352 | -4/Upper Caves | Destroyed by P-70 Sage with Tesla Rifle Last Messages --------------- 09206_ Found Recoil Nullifier. 09206_ Found Adv. Trap Extractor. 09206_ Found 38 Matter. 09206_ Acquired Adv. Trap Extractor. 09207_ Acquired 38 matter. 09221_ Targeting Computer destroyed. 09221_ Cesium-ion Thruster destroyed. 09221_ Penetrated by Slug. 09229_ Mak. Terrain Scanner destroyed. 09250_ System corrupted: Component data lost. 09287_ Penetrated by Slug. 09289_ Acquired Alien Artifact. 09289_ Identified Dimensional Node Initializer. 09289_ Initializer activates and latches into the ground. 09290_ System corrupted: Heat flow error (+285). 09293_ Penetrated by Slug. 09293_ Slug penetrates Wall. 09302_ Penetrated by Slug. 09302_ Vortex Catalyst Activator destroyed. 09352_ Carbon-fiber Leg destroyed. Map ----- +----------------------------------------------------+ | ?????????????????????????????????????????????????? | | ?????????????????????????????????????????????????? | | ???????????????????????????####??????????????????? | | ??????????????????????????## ##?????????????????? | | ?????????????????????????## #?????????????????? | | ?????????????????????????# #?????????????????? | | ????####??????###????###?# #?????????????????? | | ????# ######## #????# #### #?###?????????????? | | ##??# ###### ### # ### ###???????????? | | # #?# # # #???????????? | | ## #???????????? | | ########### ## #???????????? | | #?????????## ### #???????????? | | #???#????? # ## ##?# #???????????? | | ##???# ???? ## ###?## ##??????????? | | ##????# ???# ###???# ##??###????? | | ###?????# ??# ##????## #### #????? | | ## ##?????### ??## ##???## ## ##???? | | ?## ##??????# ?## #???# #???? | | ### #??###### ## ##??# #???? | | ### #??# ## ##???? | | #??## #### #????? | | ####???? #???## #??# #????? | | ##????????? ##??# ### #????? | | # ### #???????????# #??# #????? | | ##??# ##???????????# @ ###### ##????? | | ???## ##??????????## p % ## #?????? | | ??## ###???###### p ### #?????? | | ?## #???# ### #?#### #?????? | | ## ##???# #??####????# #?????? | | # ##????## ## #??????????# #?????? | | # #??????# ### #??????????# #?????? | | # #??????# #?## #?????????# #?????? | | ## #?????## #??## ##?????????# #?????? | | ######????## # #??? ##??????????# ###???? | | #???????## # ###??? #???????????# ##??? | | ######### #????# #???????????# ##?? | | # #? #???????????## #?? | | # # # #????????????### #?? | | ######### # #?? ??????????????## #?? | | #????## ## ? ???????????????## #? | | ?????# ##?# ???????????????????# #? | | ## ## ?????####???####???????????????????##? | | #######?# ?????????????????????????????????????? | | #????????####????????????????????????????????????? | | ?????????????????????????????????????????????????? | | ?????????????????????????????????????????????????? | | ?????????????????????????????????????????????????? | | ?????????????????????????????????????????????????? | | ?????????????????????????????????????????????????? | +----------------------------------------------------+ Best States ------------- Heat Dissipation 71 Energy Generation 25 Energy Capacity 315 Matter Stores 300 Matter Capacity 300 Sight Range 18 Robot Scan Range 16 Terrain Scan Range 18 Terrain Scan Density 10 Additional Mass Support 6 Armor Coverage 1200 Phase Shifting 5 Evasion (%) 63 Targeting Accuracy 6 Melee Accuracy 8 Recoil Reduction 5 Offensive Hacking 10 Item Schematics ----------------- Force Booster | -7/Factory | Hacked Tesla Rifle | -7/Factory | Hacked Imp. VSS Leg | -6/Factory | Hacked Imp. Gyrokinetic Inverter | -6/Factory | Hacked Robot Schematics ------------------ None Fabricated ------------ Nothing Alien Tech Used ----------------- Dimensional Node Initializer Achievements -------------- None Challenges ------------ None Game ------ Seed AntigravSeismicScythe Manual? 0 Play Time 01:17:24 Cumulative 312.2 hours Start 2022.06.10 @ 13:42:33 End 2022.06.10 @ 15:40:00 Sessions 1 Manual Loads 0 Difficulty Rogue Special Mode None Game No. 390 Rogue 389 Adventurer 0 Explorer 1 Win Type - Total 7 Types 5/0/0/2/0/0/0/0/0 Lore% 70 Gallery% 81 Achievement% 60 Wizard Run 0 Options --------- ASCII 0 Keyboard 1 Movement Vi Keybinds 0 Fullscreen 1 Font 18/SmallcapsGlow Map View 76x50 Tactical HUD 1 Map Filters NONE Filters NONE Steam 1 RUN: 997b5cd7-c658-4799-868e-550bdc4d1139